fUSD/lending_fUSD_20250702
["ID","MTS","AMOUNT","RATE_DAILY","PERIOD"]
[369032516,1751439047516,-490.0,0.00016597,2]
[369032517,1751439047526,-276.6663942,0.00016597,2]
[369032518,1751439047535,-490.49105043,0.00016597,2]
[369032519,1751439047545,-490.0,0.00016597,2]
[369032520,1751439047555,-490.0,0.00016597,2]
[369032521,1751439047565,-490.0,0.00016597,2]
[369032522,1751439047575,-490.0,0.00016597,2]
[369032523,1751439047585,-490.0,0.00016597,2]
[369032529,1751439047750,-490.0,0.00016597,2]
[369032531,1751439047760,-607.14,0.00016597,2]
[369032533,1751439047769,-490.0,0.00016597,2]
[369032535,1751439047778,-490.0,0.00016597,2]
[369032537,1751439047788,-490.0,0.00016597,2]
[369032539,1751439047797,-490.0,0.00016597,2]
[369032541,1751439047807,-490.0,0.00016597,2]
[369032543,1751439047816,-490.0,0.00016597,2]
[369032545,1751439047826,-2060.41,0.00016597,2]
[369032547,1751439047835,-490.0,0.00016597,2]
[369032549,1751439047845,-490.0,0.00016597,2]
[369032551,1751439047855,-490.0,0.00016597,2]
[369032553,1751439047865,-652.77,0.00016597,2]
[369032555,1751439047874,-500.0,0.00016597,2]
[369032557,1751439047883,-500.0,0.00016597,2]
[369032559,1751439047893,-490.0,0.00016597,2]
[369032561,1751439047902,-490.0,0.00016597,2]
[369032563,1751439047912,-490.0,0.00016597,2]
[369032566,1751439047922,-490.0,0.00016597,2]
[369032568,1751439047932,-1651.81,0.00016597,2]
[369032570,1751439047943,-490.0,0.00016597,2]
[369032572,1751439047953,-490.0,0.00016597,2]
[369032574,1751439047962,-490.0,0.00016597,2]
[369032576,1751439047971,-490.0,0.00016597,2]
[369032578,1751439047981,-490.0,0.00016597,2]
[369032580,1751439047990,-491.3735829,0.00016597,2]
[369032582,1751439048001,-490.0,0.00016597,2]
[369032584,1751439048011,-490.0,0.00016597,2]
[369032586,1751439048020,-490.0,0.00016597,2]
[369032588,1751439048029,-490.0,0.00016597,2]
[369032590,1751439048039,-500.0,0.00016597,2]
[369032592,1751439048048,-251.49618473,0.00016597,2]
[369032594,1751439048058,-490.0,0.00016597,2]
[369032596,1751439048067,-630.66,0.00016597,2]
[369032598,1751439048077,-490.0,0.00016597,2]
[369032600,1751439048086,-515.12,0.00016597,2]
[369032602,1751439048096,-687.05,0.00016597,2]
[369032604,1751439048104,-687.05,0.00016597,2]
[369032606,1751439048115,-386.35140165,0.00016597,2]
[369032608,1751439048126,-490.0,0.00016597,2]
[369032610,1751439048135,-490.0,0.00016597,2]
[369032612,1751439048144,-490.0,0.00016597,2]
[369032614,1751439048154,-888.6,0.00016597,2]
[369032616,1751439048167,-490.0,0.00016597,2]
[369032618,1751439048176,-1750.92,0.00016597,2]
[369032620,1751439048185,-490.0,0.00016597,2]
[369032622,1751439048195,-490.0,0.00016597,2]
[369032624,1751439048204,-1662.07,0.00016597,2]
[369032626,1751439048213,-548.82,0.00016597,2]
[369032628,1751439048222,-490.0,0.00016597,2]
[369032630,1751439048231,-315.52697189,0.00016597,2]
[369032632,1751439048240,-490.0,0.00016597,2]
[369032634,1751439048250,-1821.67,0.00016597,2]
[369032636,1751439048259,-490.0,0.00016597,2]
[369032638,1751439048268,-490.0,0.00016597,2]
[369032640,1751439048278,-490.0,0.00016597,2]
[369032642,1751439048287,-1277.86,0.00016597,2]
[369032644,1751439048297,-582.05107076,0.00016597,2]
[369032646,1751439048306,-490.0,0.00016597,2]
[369032647,1751439048315,-490.0,0.00016597,2]
[369032649,1751439048324,-867.15,0.00016597,2]
[369032651,1751439048334,-490.0,0.00016597,2]
[369032653,1751439048343,-490.0,0.00016597,2]
[369032655,1751439048353,-490.0,0.00016597,2]
[369032657,1751439048362,-490.0,0.00016597,2]
[369032659,1751439048371,-490.0,0.00016597,2]
[369032661,1751439048381,-490.0,0.00016597,2]
[369032663,1751439048390,-759.56,0.00016597,2]
[369032665,1751439048400,-731.94,0.00016597,2]
[369032667,1751439048410,-490.0,0.00016597,2]
[369032669,1751439048419,-490.0,0.00016597,2]
[369032671,1751439048429,-490.0,0.00016597,2]
[369032673,1751439048438,-490.0,0.00016597,2]
[369032675,1751439048448,-1375.16,0.00016597,2]
[369032677,1751439048457,-490.0,0.00016597,2]
[369032679,1751439048468,-373.35579546,0.00016597,2]
[369032681,1751439048478,-615.9,0.00016597,2]
[369032683,1751439048487,-490.0,0.00016597,2]
[369032685,1751439048497,-490.0,0.00016597,2]
[369032687,1751439048507,-490.0,0.00016597,2]
[369032689,1751439048516,-490.0,0.00016597,2]
[369032691,1751439048525,-490.0,0.00016597,2]
[369032693,1751439048534,-490.0,0.00016597,2]
[369032695,1751439048545,-1922.02,0.00016597,2]
[369032696,1751439048554,-490.0,0.00016597,2]
[369032698,1751439048564,-490.0,0.00016597,2]
[369032701,1751439048574,-490.0,0.00016597,2]
[369032703,1751439048583,-490.0,0.00016597,2]
[369032704,1751439048593,-70.7295049,0.00016597,2]
[369032907,1751439050577,-250.0,0.0001647,2]
[369032909,1751439050587,-419.2704951,0.00016597,2]
[369032911,1751439050596,-490.0,0.00016597,2]
[369032913,1751439050605,-490.0,0.00016597,2]
[369032915,1751439050614,-35.60136488,0.00016597,2]
[369032917,1751439050626,-454.39863512,0.00016597,2]
[369032919,1751439050635,-399.61761427,0.00016597,2]
[369032924,1751439051430,-287.54806406,0.0001649,2]
[369032925,1751439051495,-58.21913594,0.0001649,2]
[369032926,1751439051504,-255.81320917,0.00016589,2]
[369032930,1751439051678,-234.18679083,0.00016589,2]
[369032932,1751439051687,-31.82756295,0.00016589,2]
[369032938,1751439297533,-450.41290407,0.00016173,2]
[369032939,1751439297560,-221.06230935,0.00016495,2]
[369032940,1751439297809,-3969.40788658,0.00016496,2]
[369032944,1751439883992,150.0,0.000273,120]
[369032947,1751439993387,160.03,0.00013699,2]
[369032954,1751440112402,-4231.6441229,0.0003731,120]
[369032955,1751440112427,-1556.79783783,0.0003731,120]
[369032957,1751440232009,-200.0,0.00015482,2]
[369032958,1751440232020,-259.44,0.00015519,2]
[369032959,1751440232029,-167.03,0.0001554,2]
[369032960,1751440232038,-323.32528682,0.00015586,2]
[369032961,1751440232048,-1200.0,0.00015586,2]
[369032962,1751440232057,-5308.91,0.00015587,2]
[369032963,1751440232067,-1000.0,0.00015587,2]
[369032964,1751440232077,-2880.09,0.00015592,2]
[369032965,1751440232086,-199.09212493,0.00015594,2]
[369032966,1751440232096,-5082.29672268,0.00015603,2]
[369032967,1751440232107,-449.91128367,0.00015603,2]
[369032969,1751440232210,-449.67,0.00015603,2]
[369032971,1751440232222,-843.2866551,0.00015603,2]
[369032974,1751440232233,-114.26533855,0.00015603,2]
[369032976,1751440232243,-427.39395789,0.00016137,2]
[369032978,1751440232255,-72.60604211,0.00016137,2]
[369032980,1751440232264,-168.0,0.00016148,2]
[369032982,1751440232274,-168.0,0.00016156,2]
[369032984,1751440232283,-272.860429,0.00016266,2]
[369032986,1751440232292,-1181.0,0.00016289,2]
[369032988,1751440232301,-103.39732122,0.0001629,2]
[369032991,1751440232322,-953.138,0.0001629,2]
[369033019,1751440232520,-6.40280378,0.0001629,2]
[369033020,1751440232530,-168.0,0.00016323,2]
[369033021,1751440232539,-643.65257314,0.00016372,2]
[369033025,1751440232581,-537.34742686,0.00016372,2]
[369033026,1751440232591,-207.4,0.00016419,2]
[369033027,1751440232601,-300.0,0.00016419,2]
[369033028,1751440232610,-500.0,0.00016419,2]
[369033029,1751440232620,-543.17911263,0.00016419,2]
[369033030,1751440232630,-1181.0,0.0001642,2]
[369033031,1751440232640,-490.0,0.0001646,2]
[369033032,1751440232649,-1743.73596209,0.00016489,2]
[369033033,1751440232659,-1181.0,0.00016493,2]
[369033034,1751440232668,-587.72865811,0.00016494,2]
[369033035,1751440232679,-3144.07451365,0.00016494,2]
[369033036,1751440232700,-1268.19682824,0.00016494,2]
[369033037,1751440232709,-1218.9030455,0.00016494,2]
[369033038,1751440232719,-1181.0,0.00016498,2]
[369033039,1751440232728,-1239.50012626,0.000165,2]
[369033043,1751440237788,-372.97987374,0.000165,2]
[369033044,1751440237798,-469.41,0.000165,2]
[369033045,1751440237808,-1181.0,0.00016538,2]
[369033046,1751440237818,-1218.90304549,0.00016551,2]
[369033047,1751440237827,-2396.43,0.00016552,2]
[369033048,1751440237837,-152.0,0.00016552,2]
[369033049,1751440237846,-150.0,0.00016553,2]
[369033050,1751440237856,-880.20619469,0.0001656,2]
[369033051,1751440238077,-300.79380531,0.0001656,2]
[369033052,1751440238086,-190.37785605,0.00016573,2]
[369033053,1751440238097,-500.0,0.00016573,2]
[369033054,1751440238106,-504.96063598,0.00016573,2]
[369033055,1751440238116,-353.00462255,0.00016573,2]
[369033056,1751440238125,-360.84660137,0.00016573,2]
[369033057,1751440238136,-139.15339863,0.00016573,2]
[369033058,1751440238146,-500.0,0.00016573,2]
[369033059,1751440238156,-500.0,0.00016573,2]
[369033060,1751440238165,-500.0,0.00016573,2]
[369033061,1751440238174,-175.07,0.00016579,2]
[369033062,1751440238184,-529.45,0.00016579,2]
[369033063,1751440238193,-529.45,0.00016583,2]
[369033064,1751440238202,-201.07322928,0.00016586,2]
[369033065,1751440238212,-500.0,0.00016588,2]
[369033066,1751440238223,-174.35804312,0.00016588,2]
[369033068,1751440238232,-500.0,0.00016588,2]
[369033070,1751440238241,-500.0,0.00016588,2]
[369033072,1751440238250,-500.0,0.00016588,2]
[369033074,1751440238260,-490.0,0.00016588,2]
[369033076,1751440238269,-490.0,0.00016588,2]
[369033078,1751440238279,-2825.46,0.00016588,2]
[369033080,1751440238288,-490.0,0.00016588,2]
[369033082,1751440238298,-490.0,0.00016588,2]
[369033084,1751440238307,-490.0,0.00016588,2]
[369033086,1751440238317,-494.46610449,0.00016588,2]
[369033088,1751440238326,-563.11,0.00016588,2]
[369033090,1751440238335,-490.0,0.00016588,2]
[369033091,1751440238345,-490.0,0.00016588,2]
[369033093,1751440238354,-493.55688432,0.00016588,2]
[369033095,1751440238363,-490.0,0.00016588,2]
[369033097,1751440238373,-490.0,0.00016588,2]
[369033099,1751440238382,-490.0,0.00016588,2]
[369033101,1751440238391,-490.0,0.00016588,2]
[369033103,1751440238401,-1365.08,0.00016588,2]
[369033105,1751440238410,-1151.62,0.00016588,2]
[369033107,1751440238419,-490.0,0.00016588,2]
[369033108,1751440238428,-509.42,0.00016588,2]
[369033109,1751440238437,-490.0,0.00016588,2]
[369033110,1751440238446,-1034.51,0.00016588,2]
[369033111,1751440238455,-2886.05,0.00016588,2]
[369033112,1751440238464,-490.0,0.00016588,2]
[369033113,1751440238472,-1275.82,0.00016588,2]
[369033114,1751440238482,-899.03,0.00016588,2]
[369033115,1751440238491,-469.05630975,0.00016588,2]
[369033116,1751440238500,-1484.97,0.00016588,2]
[369033117,1751440238508,-490.0,0.00016588,2]
[369033118,1751440238518,-1062.03,0.00016588,2]
[369033119,1751440238527,-662.5,0.00016588,2]
[369033120,1751440238536,-490.0,0.00016588,2]
[369033121,1751440238545,-431.22778499,0.00016588,2]
[369033122,1751440238556,-1078.04,0.00016588,2]
[369033123,1751440238566,-926.54,0.00016588,2]
[369033124,1751440238575,-490.0,0.00016588,2]
[369033126,1751440238584,-490.0,0.00016588,2]
[369033128,1751440238594,-2991.94,0.00016588,2]
[369033130,1751440238603,-932.34,0.00016588,2]
[369033132,1751440238613,-745.18,0.00016588,2]
[369033133,1751440238623,-490.0,0.00016588,2]
[369033135,1751440238632,-903.95,0.00016588,2]
[369033137,1751440238642,-490.0,0.00016588,2]
[369033139,1751440238652,-1266.27,0.00016588,2]
[369033141,1751440238661,-3120.29,0.00016588,2]
[369033143,1751440238670,-151.838701,0.00016588,2]
[369033145,1751440238680,-770.026631,0.00016588,2]
[369033147,1751440238690,-4716.77,0.00016588,2]
[369033149,1751440238699,-157.190481,0.00016588,2]
[369033151,1751440238708,-490.0,0.00016588,2]
[369033153,1751440238718,-849.850994,0.00016588,2]
[369033155,1751440238727,-490.0,0.00016588,2]
[369033157,1751440238737,-898.928694,0.00016588,2]
[369033159,1751440238746,-490.0,0.00016588,2]
[369033161,1751440238756,-877.06,0.00016588,2]
[369033163,1751440238766,-1355.55,0.00016588,2]
[369033165,1751440238776,-492.42425959,0.00016588,2]
[369033167,1751440238785,-490.0,0.00016588,2]
[369033169,1751440238795,-490.0,0.00016588,2]
[369033171,1751440238804,-490.0,0.00016588,2]
[369033173,1751440238813,-490.0,0.00016589,2]
[369033175,1751440238823,-490.0,0.00016589,2]
[369033177,1751440238832,-490.0,0.00016589,2]
[369033179,1751440238841,-490.0,0.00016589,2]
[369033181,1751440238851,-490.0,0.00016589,2]
[369033183,1751440238860,-490.0,0.00016589,2]
[369033185,1751440238870,-490.0,0.00016589,2]
[369033187,1751440238879,-490.0,0.00016589,2]
[369033189,1751440238888,-490.0,0.00016589,2]
[369033190,1751440238898,-490.0,0.00016589,2]
[369033191,1751440238907,-490.0,0.00016589,2]
[369033193,1751440238916,-490.0,0.00016589,2]
[369033195,1751440238926,-490.0,0.00016589,2]
[369033197,1751440238935,-1682.49,0.00016589,2]
[369033198,1751440238945,-490.0,0.00016589,2]
[369033199,1751440238955,-490.0,0.00016589,2]
[369033200,1751440238965,-2161.49,0.00016589,2]
[369033201,1751440238975,-490.0,0.00016589,2]
[369033202,1751440238984,-490.0,0.00016589,2]
[369033203,1751440238994,-799.38,0.00016589,2]
[369033204,1751440239003,-490.0,0.00016589,2]
[369033205,1751440239013,-1718.57,0.00016589,2]
[369033206,1751440239022,-490.0,0.00016589,2]
[369033207,1751440239031,-490.0,0.00016589,2]
[369033208,1751440239041,-490.0,0.00016589,2]
[369033209,1751440239050,-924.64,0.00016589,2]
[369033210,1751440239059,-797.25,0.00016589,2]
[369033211,1751440239068,-490.0,0.00016589,2]
[369033212,1751440239077,-490.0,0.00016589,2]
[369033213,1751440239087,-1328.99,0.00016589,2]
[369033214,1751440239096,-490.0,0.00016589,2]
[369033215,1751440239105,-490.0,0.00016589,2]
[369033216,1751440239114,-490.0,0.00016589,2]
[369033217,1751440239124,-621.78,0.00016589,2]
[369033218,1751440239133,-588.93,0.00016589,2]
[369033219,1751440239143,-490.0,0.00016589,2]
[369033220,1751440239152,-1564.61,0.00016589,2]
[369033221,1751440239162,-500.0,0.00016589,2]
[369033222,1751440239171,-150.0,0.00016589,2]
[369033223,1751440239180,-150.0,0.00016589,2]
[369033224,1751440239190,-500.0,0.00016589,2]
[369033225,1751440239200,-2145.29,0.00016589,2]
[369033226,1751440239209,-150.0,0.00016589,2]
[369033227,1751440239218,-206.58792345,0.00016589,2]
[369033228,1751440239227,-150.0,0.00016589,2]
[369033229,1751440239236,-500.0,0.00016589,2]
[369033230,1751440239245,-500.0,0.00016589,2]
[369033231,1751440239255,-763.8,0.00016589,2]
[369033232,1751440239264,-150.0,0.00016589,2]
[369033233,1751440239273,-735.41,0.00016589,2]
[369033234,1751440239283,-490.0,0.00016589,2]
[369033235,1751440239292,-550.66,0.00016589,2]
[369033236,1751440239301,-490.0,0.00016589,2]
[369033237,1751440239312,-1098.62,0.00016589,2]
[369033238,1751440239322,-490.0,0.00016589,2]
[369033239,1751440239332,-663.53,0.00016589,2]
[369033240,1751440239342,-490.0,0.00016589,2]
[369033241,1751440239353,-1151.64,0.00016589,2]
[369033242,1751440239362,-500.0,0.00016589,2]
[369033243,1751440239373,-1018.13,0.00016589,2]
[369033244,1751440239384,-1072.88,0.00016589,2]
[369033245,1751440239394,-490.0,0.00016589,2]
[369033246,1751440239404,-692.46,0.00016589,2]
[369033247,1751440239414,-1536.87,0.00016589,2]
[369033248,1751440239423,-490.0,0.00016589,2]
[369033249,1751440239434,-500.0,0.00016589,2]
[369033250,1751440239444,-1076.66,0.00016589,2]
[369033251,1751440239455,-804.0,0.00016589,2]
[369033252,1751440239464,-490.0,0.00016589,2]
[369033253,1751440239473,-490.0,0.00016589,2]
[369033254,1751440239483,-490.0,0.00016589,2]
[369033255,1751440239492,-1582.63,0.00016589,2]
[369033256,1751440239501,-575.26,0.00016589,2]
[369033257,1751440239510,-150.0,0.00016589,2]
[369033258,1751440239520,-1967.66,0.00016589,2]
[369033259,1751440239530,-902.99,0.00016589,2]
[369033260,1751440239542,-2897.04,0.00016589,2]
[369033261,1751440239553,-1584.69,0.00016589,2]
[369033262,1751440239566,-150.0,0.00016589,2]
[369033263,1751440239577,-1221.95,0.00016589,2]
[369033264,1751440239588,-956.69,0.00016589,2]
[369033265,1751440239598,-150.0,0.00016589,2]
[369033266,1751440239609,-150.0,0.00016589,2]
[369033267,1751440239620,-3146.71,0.00016589,2]
[369033268,1751440239629,-256.40607225,0.00016589,2]
[369033269,1751440239639,-490.0,0.00016589,2]
[369033270,1751440239649,-3830.80479469,0.00016589,2]
[369033271,1751440239663,-2188.34999999,0.00016589,2]
[369033272,1751440239678,-422.97520532,0.00016589,2]
[369033273,1751440239689,-490.0,0.00016589,2]
[369033274,1751440239699,-383.03091279,0.00016589,2]
[369033275,1751440239711,-278.7724833,0.00016589,2]
[369033277,1751440240548,-490.0,0.00016588,2]
[369033278,1751440240568,-125.88634452,0.00016589,2]
[369033285,1751440240682,-394.19025939,0.00016589,2]
[369033287,1751440240692,-490.0,0.00016589,2]
[369033289,1751440240701,-871.15,0.00016589,2]
[369033291,1751440240711,-490.0,0.00016589,2]
[369033293,1751440240720,-1481.82,0.00016589,2]
[369033295,1751440240730,-1209.11,0.00016589,2]
[369033297,1751440240739,-490.0,0.00016589,2]
[369033299,1751440240748,-1330.67,0.00016589,2]
[369033301,1751440240757,-996.31,0.00016589,2]
[369033303,1751440240766,-1299.24,0.00016589,2]
[369033305,1751440240776,-1263.9,0.00016589,2]
[369033307,1751440240785,-6093.33,0.00016589,2]
[369033309,1751440240794,-490.0,0.00016589,2]
[369033311,1751440240803,-359.6179651,0.00016589,2]
[369033320,1751440240881,-130.3820349,0.00016589,2]
[369033322,1751440240890,-961.47,0.00016589,2]
[369033324,1751440240900,-8276.87,0.00016589,2]
[369033326,1751440240909,-646.76,0.00016589,2]
[369033328,1751440240918,-1292.83,0.00016589,2]
[369033330,1751440240928,-734.56,0.00016589,2]
[369033332,1751440240937,-758.58,0.00016589,2]
[369033334,1751440240946,-490.0,0.00016589,2]
[369033336,1751440240955,-1883.79,0.00016589,2]
[369033338,1751440240964,-490.0,0.00016589,2]
[369033340,1751440240973,-1991.43,0.00016589,2]
[369033342,1751440240983,-1034.97,0.00016589,2]
[369033344,1751440240993,-490.0,0.00016589,2]
[369033346,1751440241003,-1179.67,0.00016589,2]
[369033348,1751440241012,-1855.15,0.00016589,2]
[369033350,1751440241021,-1196.98,0.00016589,2]
[369033352,1751440241030,-150.0,0.00016589,2]
[369033354,1751440241039,-490.0,0.00016589,2]
[369033356,1751440241048,-2325.84,0.00016589,2]
[369033358,1751440241058,-510.74,0.00016589,2]
[369033360,1751440241067,-565.39,0.00016589,2]
[369033362,1751440241076,-14641.57,0.00016589,2]
[369033364,1751440241085,-1425.22,0.00016589,2]
[369033366,1751440241094,-500.0,0.00016589,2]
[369033368,1751440241103,-490.0,0.00016589,2]
[369033370,1751440241112,-1103.13,0.00016589,2]
[369033372,1751440241121,-1566.85,0.00016589,2]
[369033374,1751440241130,-782.62,0.00016589,2]
[369033376,1751440241139,-490.0,0.00016589,2]
[369033378,1751440241148,-1254.73,0.00016589,2]
[369033380,1751440241157,-543.33,0.00016589,2]
[369033382,1751440241167,-744.57,0.00016589,2]
[369033384,1751440241176,-500.0,0.00016589,2]
[369033386,1751440241186,-1558.0,0.00016589,2]
[369033388,1751440241195,-490.0,0.00016589,2]
[369033390,1751440241204,-490.0,0.00016589,2]
[369033392,1751440241213,-2275.24,0.00016589,2]
[369033394,1751440241222,-1224.2,0.00016589,2]
[369033396,1751440241231,-154.31332976,0.00016589,2]
[369033398,1751440241241,-746.0,0.00016589,2]
[369033400,1751440241251,-490.0,0.00016589,2]
[369033402,1751440241260,-2256.38,0.00016589,2]
[369033404,1751440241269,-970.44,0.00016589,2]
[369033405,1751440241278,-500.0,0.00016589,2]
[369033407,1751440241287,-7003.9,0.00016589,2]
[369033409,1751440241296,-693.51,0.00016589,2]
[369033411,1751440241306,-1250.25,0.00016589,2]
[369033413,1751440241316,-1914.03,0.00016589,2]
[369033415,1751440241326,-490.0,0.00016589,2]
[369033417,1751440241335,-490.0,0.00016589,2]
[369033419,1751440241344,-1993.68,0.00016589,2]
[369033421,1751440241354,-17219.02,0.00016589,2]
[369033423,1751440241363,-490.0,0.00016589,2]
[369033425,1751440241372,-1137.38,0.00016589,2]
[369033427,1751440241381,-1391.37,0.00016589,2]
[369033429,1751440241392,-490.0,0.00016589,2]
[369033431,1751440241402,-922.91,0.00016589,2]
[369033433,1751440241412,-500.0,0.00016591,2]
[369033435,1751440241421,-500.0,0.00016591,2]
[369033437,1751440241432,-500.0,0.00016591,2]
[369033439,1751440241441,-500.0,0.00016591,2]
[369033441,1751440241451,-500.0,0.00016591,2]
[369033443,1751440241460,-500.0,0.00016591,2]
[369033445,1751440241470,-401.29797048,0.00016591,2]
[369033447,1751440241479,-500.0,0.00016591,2]
[369033449,1751440241488,-437.88153565,0.00016591,2]
[369033451,1751440241497,-500.0,0.00016591,2]
[369033453,1751440241506,-490.0,0.00016592,2]
[369033455,1751440241516,-490.0,0.00016592,2]
[369033457,1751440241525,-490.0,0.00016592,2]
[369033459,1751440241535,-490.0,0.00016592,2]
[369033461,1751440241545,-490.0,0.00016592,2]
[369033463,1751440241558,-490.0,0.00016592,2]
[369033465,1751440241575,-490.0,0.00016592,2]
[369033467,1751440241585,-783.84,0.00016592,2]
[369033469,1751440241595,-6492.95,0.00016592,2]
[369033471,1751440241604,-795.16,0.00016592,2]
[369033473,1751440241614,-932.1,0.00016592,2]
[369033475,1751440241623,-1185.18,0.00016592,2]
[369033478,1751440241633,-840.01,0.00016592,2]
[369033479,1751440241642,-664.12,0.00016592,2]
[369033481,1751440241651,-1710.83,0.00016592,2]
[369033483,1751440241661,-1241.43,0.00016592,2]
[369033485,1751440241670,-1558.79,0.00016592,2]
[369033487,1751440241680,-7248.5,0.00016592,2]
[369033489,1751440241689,-1882.2,0.00016592,2]
[369033491,1751440241699,-1280.33,0.00016592,2]
[369033494,1751440241709,-490.0,0.00016592,2]
[369033495,1751440241719,-490.0,0.00016592,2]
[369033497,1751440241729,-1593.14,0.00016592,2]
[369033500,1751440241738,-1292.3,0.00016592,2]
[369033501,1751440241748,-1321.65,0.00016592,2]
[369033503,1751440241757,-907.22,0.00016592,2]
[369033506,1751440241767,-490.0,0.00016592,2]
[369033507,1751440241776,-8649.13,0.00016592,2]
[369033509,1751440241786,-490.0,0.00016592,2]
[369033511,1751440241795,-764.41,0.00016592,2]
[369033513,1751440241804,-1006.6,0.00016592,2]
[369033515,1751440241814,-1465.19,0.00016592,2]
[369033517,1751440241824,-4804.0,0.00016592,2]
[369033519,1751440241833,-490.0,0.00016593,2]
[369033521,1751440241843,-1000.0,0.00016593,2]
[369033523,1751440241852,-490.0,0.00016593,2]
[369033525,1751440241861,-490.0,0.00016593,2]
[369033527,1751440241871,-490.0,0.00016593,2]
[369033529,1751440241880,-490.0,0.00016593,2]
[369033531,1751440241889,-490.0,0.00016593,2]
[369033533,1751440241899,-490.0,0.00016593,2]
[369033535,1751440241909,-490.0,0.00016593,2]
[369033537,1751440241918,-490.0,0.00016593,2]
[369033539,1751440241928,-490.0,0.00016593,2]
[369033541,1751440241939,-490.0,0.00016593,2]
[369033543,1751440241948,-490.0,0.00016593,2]
[369033545,1751440241958,-492.17406747,0.00016593,2]
[369033547,1751440241967,-490.0,0.00016593,2]
[369033549,1751440241977,-490.0,0.00016593,2]
[369033551,1751440241986,-490.0,0.00016593,2]
[369033553,1751440241995,-490.0,0.00016593,2]
[369033555,1751440242005,-490.0,0.00016593,2]
[369033557,1751440242015,-490.0,0.00016593,2]
[369033559,1751440242024,-490.0,0.00016593,2]
[369033560,1751440242034,-490.0,0.00016593,2]
[369033561,1751440242044,-490.0,0.00016593,2]
[369033562,1751440242054,-490.0,0.00016593,2]
[369033563,1751440242063,-490.0,0.00016593,2]
[369033564,1751440242073,-490.0,0.00016593,2]
[369033565,1751440242082,-490.0,0.00016593,2]
[369033566,1751440242092,-490.0,0.00016593,2]
[369033567,1751440242102,-490.0,0.00016593,2]
[369033568,1751440242111,-490.0,0.00016593,2]
[369033569,1751440242120,-490.0,0.00016593,2]
[369033570,1751440242130,-490.0,0.00016593,2]
[369033571,1751440242139,-490.0,0.00016593,2]
[369033572,1751440242149,-490.0,0.00016593,2]
[369033573,1751440242162,-490.0,0.00016593,2]
[369033574,1751440242171,-490.0,0.00016593,2]
[369033575,1751440242180,-559.27,0.00016593,2]
[369033576,1751440242190,-1113.64,0.00016593,2]
[369033577,1751440242199,-510.12783177,0.00016593,2]
[369033578,1751440242208,-490.0,0.00016593,2]
[369033579,1751440242218,-490.0,0.00016593,2]
[369033580,1751440242227,-490.0,0.00016593,2]
[369033581,1751440242236,-490.0,0.00016593,2]
[369033583,1751440242246,-490.0,0.00016593,2]
[369033585,1751440242255,-490.0,0.00016593,2]
[369033587,1751440242265,-501.49343353,0.00016593,2]
[369033589,1751440242274,-490.0,0.00016593,2]
[369033591,1751440242283,-490.0,0.00016593,2]
[369033593,1751440242292,-490.0,0.00016593,2]
[369033595,1751440242302,-490.0,0.00016593,2]